bitfinex/quotes_SOLUSD_20220307
["timestamp","ask_amount","ask_price","bid_price","bid_amount"]
[1646696939282,0.25,81.871,81.821,49.35145553]
[1646696939484,6.109,81.87,81.83,18.3364]
[1646696939684,0.25,81.871,81.83,25.8264]
[1646696940383,23.2172,81.888,81.83,25.8264]
[1646696940884,3.27205946,81.906,81.83,25.8264]
[1646696941085,3.27205946,81.906,81.85,18.331]
[1646696941284,9.90758992,81.906,81.851,62.02042061]
[1646696941485,6.63553046,81.906,81.851,62.02042061]
[1646696941685,23.1456,81.907,81.851,62.02042061]
[1646696942285,23.1456,81.907,81.86,18.3278]
[1646696942491,3.27205946,81.905,81.823,46.6334]
[1646696942685,3.27205946,81.903,81.824,0.25]
[1646696942886,6.357,81.902,81.824,0.25]
[1646696943086,6.63571141,81.901,81.824,0.25]
[1646696943288,44.08584614,81.9,81.823,46.6334]
[1646696943488,127.4,81.899,81.823,46.6334]
[1646696943687,121.4,81.897,81.823,46.6334]
[1646696943886,121.4,81.895,81.823,46.6334]
[1646696944086,134.14271141,81.894,81.823,46.6334]
[1646696944286,3.27205946,81.886,81.808,64.52498856]
[1646696944489,124.67205946,81.884,81.82,18.3384]
[1646696944687,121.4,81.882,81.82,18.3384]
[1646696944887,121.4,81.88,81.82,18.3384]
[1646696945089,121.4,81.878,81.82,18.3384]
[1646696945289,121.4,81.876,81.82,18.3384]
[1646696945487,121.4,81.874,81.82,18.3384]
[1646696945686,121.4,81.874,81.821,56.79533727]
[1646696946488,6.107,81.883,81.83,18.3363]
[1646696946688,22.8951,81.891,81.83,18.3363]
[1646696946889,3.27205946,81.894,81.83,18.3363]
[1646696947190,3.27205946,81.901,81.83,18.3363]
[1646696947390,3.27205946,81.9,81.83,18.3363]
[1646696947592,52.2983451,81.899,81.831,0.25]
[1646696947890,52.2983451,81.899,81.851,64.06241638]
[1646696948095,6.106,81.898,81.851,64.06241638]
[1646696948289,0.25,81.897,81.851,64.06241638]
[1646696948710,6.106,81.898,81.86,18.3297]
[1646696948911,6.106,81.898,81.86,25.4497]
[1646696949111,6.0,81.899,81.86,25.4497]
[1646696949816,6.0,81.898,81.86,25.4497]
[1646696950012,6.106,81.917,81.86,25.4497]
[1646696950215,12.88474102,81.916,81.86,25.4497]
[1646696950412,12.73974102,81.915,81.86,25.4497]
[1646696950612,6.88474102,81.914,81.86,25.4497]
[1646696950812,6.105,81.913,81.86,25.4497]
[1646696951213,6.106,81.923,81.861,121.65]
[1646696951415,6.105,81.933,81.87,18.3206]
[1646696951612,6.104,81.934,81.871,0.25]
[1646696951811,48.15001093,81.933,81.871,54.56919257]
[1646696952217,6.104,81.94,81.871,54.56919257]
[1646696952513,6.63286488,81.939,81.871,54.56919257]
[1646696952718,0.25,81.938,81.871,54.56919257]
[1646696953115,0.25,81.947,81.88,18.3206]
[1646696953314,6.6327719,81.946,81.88,18.3206]
[1646696953516,6.25,81.945,81.88,18.3206]
[1646696953714,6.6327719,81.944,81.88,18.3206]
[1646696953915,6.6327719,81.944,81.881,121.4]
[1646696954115,3.27205946,81.954,81.882,0.25]
[1646696954314,6.63197486,81.954,81.882,0.87997853]
[1646696954519,3.27205946,81.963,81.9,18.3172]
[1646696954716,41.79072795,81.962,81.901,57.15082183]
[1646696954915,6.63197486,81.961,81.901,57.15082183]
[1646696955115,41.79072795,81.962,81.902,0.25]
[1646696955519,6.0,81.962,81.902,0.25]
[1646696955718,6.0,81.961,81.902,0.25]
[1646696955917,23.1659,81.971,81.902,0.25]
[1646696956118,6.0,81.97,81.91,18.3151]
[1646696956319,12.63138975,81.97,81.91,18.3151]
[1646696956721,6.63138975,81.969,81.91,18.3151]
[1646696956922,6.0,81.97,81.91,18.3151]
[1646696957619,6.102,81.98,81.91,18.3151]
[1646696957824,6.25,81.979,81.91,18.3151]
[1646696958021,6.63098348,81.978,81.91,18.3151]
[1646696958222,6.0,81.977,81.91,18.3151]
[1646696958422,6.0,81.977,81.911,0.25]
[1646696958622,6.101,81.989,81.93,18.3109]
[1646696958822,3.27205946,81.992,81.931,0.25]
[1646696959123,100.0,82.0,81.931,59.65889209]
[1646696959325,100.0,82.0,81.931,181.05889209]
[1646696959532,6.62886867,81.999,81.934,0.30173506]
[1646696959726,100.0,82.0,81.935,121.4]
[1646696959923,3.27205946,82.029,81.951,0.3443735]
[1646696960123,49.36938633,82.056,81.951,70.88387874]
[1646696960326,3.27205946,82.058,81.952,121.4]
[1646696960525,3.27205946,82.065,81.954,121.86814938]
[1646696960723,6.6243588,82.075,81.957,0.46814938]
[1646696960922,6.096,82.074,81.971,121.4]
[1646696961126,6.6243588,82.073,82.0,18.2894]
[1646696961328,3.27205946,82.089,82.001,6.25]
[1646696961527,3.27205946,82.085,82.002,0.50804467]
[1646696961727,6.094,82.084,82.002,1.1380232]
[1646696961932,3.27205946,82.093,82.003,6.25]
[1646696962225,3.27205946,82.101,82.02,18.2887]
[1646696962425,6.093,82.1,82.022,0.50804467]
[1646696962625,6.6230242,82.099,82.022,6.0]
[1646696962929,6.6230242,82.101,82.023,0.25]
[1646696963125,6.6230242,82.098,82.023,0.25]
[1646696963327,3.27205946,82.094,82.023,0.25]
[1646696963527,3.27205946,82.092,82.023,0.25]
[1646696963725,9.45915946,82.093,82.022,0.25]
[1646696963926,6.6230242,82.092,82.022,0.25]
[1646696964126,23.16183661,82.094,82.022,0.25]
[1646696964326,23.16183661,82.094,82.03,18.2885]
[1646696964528,37.09213539,82.097,82.03,18.2885]
[1646696964827,13.9811043,82.077,82.022,0.25]
[1646696965026,6.87362438,82.096,82.022,0.25]
[1646696965027,6.093,82.095,82.022,0.25]
[1646696965227,0.25,82.094,82.022,0.25]
[1646696965429,0.25,82.094,82.03,18.2887]
[1646696965626,6.341,82.094,82.03,18.2887]
[1646696966027,43.92889124,82.093,82.03,18.2887]
[1646696966229,0.25,82.092,82.03,18.2887]
[1646696968031,6.343,82.092,82.03,18.2887]
[1646696969028,0.25,82.092,82.03,18.2887]
[1646696969228,6.093,82.091,82.03,18.2887]
[1646696969428,0.25,82.09,82.03,18.2887]
[1646696969630,6.25,82.092,82.03,18.2887]
[1646696969833,6.0,82.092,82.031,0.25]
[1646696970031,28.20245946,82.107,82.031,0.25]
[1646696970032,24.9304,82.107,82.05,18.2827]
[1646696970232,6.0,82.106,82.051,0.25]
[1646696970832,37.57537268,82.105,82.051,0.25]
[1646696971033,0.25,82.104,82.05,18.2827]
[1646696971233,121.65,82.104,82.03,60.9422]
[1646696971433,6.091,82.103,82.031,0.25]
[1646696971634,0.25,82.102,82.031,0.25]
[1646696972034,6.62283367,82.101,82.031,0.25]
[1646696972235,0.25,82.1,82.031,0.25]
[1646696972435,12.71383367,82.099,82.031,0.25]
[1646696972636,194.48,82.098,81.99,60.9745]
[1646696972834,0.16476951,82.095,81.942,121.4]
[1646696973033,0.16476951,82.095,81.929,18.4152]
[1646696973034,194.23,82.079,81.968,18.5604]
[1646696973238,121.4,82.077,81.969,121.4]
[1646696973434,121.4,82.075,81.969,121.4]
[1646696973634,13.49786701,82.073,81.996,49.86924868]
[1646696973933,6.094,82.072,82.0,18.2957]
[1646696974135,2.83613526,82.085,82.001,121.4]
[1646696974334,6.094,82.094,82.003,121.4]
[1646696974536,24.3292,82.098,82.005,121.4]
[1646696974734,24.3292,82.098,82.006,6.25]
[1646696974735,6.6232323,82.093,82.006,6.25]
[1646696974961,38.87862217,82.092,82.006,0.25]
[1646696975141,3.27205946,82.088,82.021,61.26173714]
[1646696975343,6.093,82.087,82.022,0.25]
[1646696975544,6.8732323,82.086,82.022,0.25]
[1646696975749,6.093,82.085,82.022,0.25]
[1646696975948,0.25,82.084,82.022,0.25]
[1646696976143,6.87350007,82.084,82.021,61.26173714]
[1646696976345,3.08613526,82.084,82.021,61.26173714]
[1646696976544,6.62350007,82.083,82.021,61.26173714]
[1646696976744,121.65,82.082,81.991,47.6093]
[1646696976944,3.27205946,82.077,81.991,47.6093]
[1646696977145,6.345,82.076,81.991,47.6093]
[1646696977345,3.27205946,82.067,81.991,47.6093]
[1646696977544,6.095,82.066,81.991,47.6093]
[1646696977745,6.62350007,82.066,81.992,46.63666683]
[1646696978047,6.62350007,82.065,82.01,18.2923]
[1646696978246,6.0,82.064,82.011,58.44381916]
[1646696978444,3.27205946,82.063,82.011,58.44381916]
[1646696978645,9.89555953,82.063,82.011,58.44381916]
[1646696978845,3.27205946,82.063,82.011,58.44381916]
[1646696979144,3.27205946,82.057,82.011,58.44381916]
[1646696979749,3.27205946,82.057,82.01,18.2923]
[1646696979949,3.27205946,82.053,81.99,60.9742]
[1646696980146,1.61424782,82.025,81.97,60.9901]
[1646696980346,6.095,82.057,81.97,60.9901]
[1646696980347,1.61424782,82.018,81.97,60.9901]
[1646696980751,1.61424782,82.01,81.971,59.74229485]
[1646696980948,1.61424782,82.009,81.971,59.74229485]
[1646696981148,1.61424782,82.008,81.99,18.2971]
[1646696981352,1.61424782,82.008,81.991,53.67164868]
[1646696981650,1.61424782,82.009,81.992,0.25]
[1646696981852,4.90808919,82.055,81.992,0.25]
[1646696981853,1.61424782,82.008,81.992,0.25]
[1646696982465,1.61424782,82.007,81.992,0.25]
[1646696982667,1.61424782,82.006,81.992,0.25]
[1646696982867,1.61424782,81.999,81.992,0.25]
[1646696983067,1.11424782,81.999,81.992,0.25]
[1646696983471,6.62647967,82.022,82.0,18.2962]
[1646696983672,3.27205946,82.029,82.001,0.25]
[1646696983870,3.27205946,82.032,82.001,0.25]
[1646696984070,3.27205946,82.04,82.001,8.43]
[1646696984271,3.27205946,82.044,82.001,129.83]
[1646696984475,3.27205946,82.055,82.002,60.81519782]
[1646696984671,6.62593054,82.066,82.003,0.25]
[1646696984672,3.27205946,82.056,82.003,0.25]
[1646696984871,3.27205946,82.048,82.003,0.25]
[1646696985072,3.27205946,82.049,82.01,18.2939]
[1646696985271,3.27205946,82.049,82.011,0.25]
[1646696985672,3.27205946,82.051,82.011,0.25]
[1646696985873,3.27205946,82.049,82.011,0.25]
[1646696986270,3.27205946,82.046,82.02,17.62487481]
[1646696986472,3.27205946,82.044,81.982,100.0]
[1646696986672,3.27205946,82.037,81.921,5.50389368]
[1646696986873,3.27205946,82.034,81.951,172.20099745]
[1646696987174,3.27205946,82.016,81.956,121.4]
[1646696987374,3.27205946,82.016,81.958,121.4]
[1646696987574,3.27205946,82.016,81.957,47.80678038]
[1646696987772,3.27205946,82.015,81.958,121.65]
[1646696987972,6.62593054,82.015,81.99,18.2978]
[1646696988172,3.27205946,82.015,81.99,18.2978]
[1646696988574,3.27205946,82.014,81.99,18.2978]
[1646696988975,3.27205946,82.015,81.99,18.2978]
[1646696989274,3.27205946,82.011,81.99,18.2978]
[1646696989873,3.27205946,82.01,81.991,48.77528186]
[1646696990074,3.27205946,82.016,82.0,18.2959]
[1646696990275,3.27205946,82.023,82.0,18.2959]
[1646696990674,3.27205946,82.026,82.0,18.2959]
[1646696990879,3.27205946,82.026,82.001,0.25]
[1646696991074,3.27205946,82.032,82.001,0.25]
[1646696991273,3.27205946,82.033,82.001,0.25]
[1646696991474,3.27205946,82.031,82.001,0.25]
[1646696991675,3.27205946,82.03,82.001,0.25]
[1646696991875,3.27205946,82.03,81.992,0.25]
[1646696992075,3.27205946,82.03,82.01,18.2919]
[1646696992276,3.27205946,82.032,82.01,18.2919]
[1646696992479,3.27205946,82.031,82.01,18.2919]
[1646696992879,3.27205946,82.031,82.011,60.452107]
[1646696993078,3.27205946,82.03,82.011,60.452107]
[1646696993482,3.27205946,82.031,82.01,18.2919]
[1646696994080,3.27205946,82.032,82.01,18.2919]
[1646696994782,3.27205946,82.031,82.01,18.2919]
[1646696994980,3.27205946,82.03,82.01,18.2919]
[1646696995181,3.27205946,82.022,82.0,18.2978]
[1646696995383,3.27205946,82.02,82.0,18.2978]
[1646696995582,3.27205946,82.013,82.0,18.2978]
[1646696996184,6.62458832,82.012,82.0,18.2978]
[1646696996383,3.27205946,82.017,82.0,18.2978]
[1646696996683,3.27205946,82.018,82.001,0.25]
[1646696996883,3.27205946,82.025,82.001,0.25]
[1646696997082,3.27205946,82.031,82.01,18.294]
[1646696997282,6.0,82.03,82.01,18.294]
[1646696997484,6.62458832,82.029,82.011,49.02558675]
[1646696997684,6.0,82.028,82.011,49.02558675]
[1646696997888,6.62458832,82.027,82.011,49.02558675]
[1646696998083,3.27205946,82.051,82.02,18.2893]
[1646696998283,6.0,82.05,82.021,0.25]
[1646696998683,6.62458832,82.049,82.021,0.25]
[1646696998885,3.27205946,82.053,82.021,0.25]
[1646696999284,3.27205946,82.054,82.012,0.25]
[1646697000084,3.27205946,82.057,82.03,18.2885]
[1646697000285,3.27205946,82.057,82.031,0.25]
[1646697000486,3.27205946,82.061,82.031,0.25]
[1646697000685,3.27205946,82.066,82.031,9.01]
[1646697000885,3.27205946,82.068,82.031,9.01]
[1646697001095,3.27205946,82.067,82.031,9.01]
[1646697001296,3.27205946,82.067,82.032,59.36731239]
[1646697001484,3.27205946,82.068,82.033,0.25]
[1646697001685,3.27205946,82.067,82.033,0.25]
[1646697002087,3.27205946,82.065,82.04,18.2855]
[1646697002286,3.27205946,82.065,82.041,0.25]
[1646697002886,6.62259867,82.082,82.041,0.25]
[1646697002887,3.27205946,82.067,82.041,0.25]
[1646697003188,3.27205946,82.067,82.033,0.25]
[1646697003387,3.27205946,82.074,82.05,18.2857]
[1646697003591,3.27205946,82.077,82.051,0.25]
[1646697003788,3.27205946,82.076,82.051,0.25]
[1646697004789,3.27205946,82.076,82.041,0.25]
[1646697004990,3.27205946,82.081,82.06,18.2838]
[1646697005189,3.27205946,82.076,82.06,18.2838]
[1646697005389,3.27205946,82.075,82.06,18.2838]
[1646697005990,3.27205946,82.076,82.06,18.2838]
[1646697006192,3.27205946,82.075,82.06,18.2838]
[1646697006490,4.39609209,82.049,82.041,0.25]
[1646697007090,3.27205946,82.085,82.041,0.25]
[1646697007292,3.27205946,82.096,82.041,130.61]
[1646697007493,9.89391559,82.101,82.043,121.4]
[1646697007693,9.89391559,82.101,82.047,121.4]
[1646697007893,3.27205946,82.102,82.048,6.341]
[1646697008195,6.62185613,82.101,82.049,121.4]
[1646697008393,3.27205946,82.102,82.051,121.4]
[1646697008593,3.27205946,82.116,82.054,0.22855926]
[1646697008802,3.27205946,82.116,82.057,0.25145765]
[1646697008998,3.27205946,82.127,82.06,0.25145765]
[1646697009198,3.27205946,82.126,82.063,0.25474523]
[1646697009400,3.27205946,82.126,82.081,121.4]
[1646697009603,3.27205946,82.127,82.082,0.25]
[1646697009799,3.27205946,82.133,82.084,121.4]
[1646697009999,3.27205946,82.141,82.087,0.23423397]
[1646697010203,3.27205946,82.144,82.091,121.4]
[1646697010403,3.27205946,82.145,82.094,0.23423397]
[1646697010602,4.90808919,82.164,82.094,0.23423397]
[1646697010603,3.27205946,82.146,82.101,121.4]
[1646697010803,3.27205946,82.149,82.102,6.338]
[1646697011203,3.27205946,82.149,82.103,62.05325043]
[1646697011406,3.27205946,82.149,82.104,6.338]
[1646697012002,3.27205946,82.155,82.104,6.338]
[1646697012301,3.27205946,82.155,82.11,18.2665]
[1646697012504,3.27205946,82.155,82.111,0.25]
[1646697012702,3.27205946,82.156,82.104,6.338]
[1646697012903,3.27205946,82.161,82.104,0.25]
[1646697013103,3.27205946,82.151,82.104,0.25]
[1646697013303,3.52205946,82.15,82.11,18.2736]
[1646697013503,6.61872228,82.149,82.11,18.2736]
[1646697013703,6.61872228,82.149,82.111,59.30750611]
[1646697014204,2.83613526,82.166,82.112,0.25]
[1646697014205,3.27205946,82.158,82.112,0.25]
[1646697014405,6.61872228,82.165,82.113,6.087]
[1646697014406,9.89078174,82.165,82.113,6.087]
[1646697014608,6.61872228,82.165,82.114,0.25]
[1646697015008,52.75630822,82.164,82.114,0.25]
[1646697015205,52.75630822,82.164,82.12,18.2708]
[1646697015407,2.83613526,82.166,82.114,0.25]
[1646697015408,2.83613526,82.166,82.121,0.25]
[1646697015605,2.83613526,82.166,82.114,0.25]
[1646697015606,2.83613526,82.175,82.114,0.25]
[1646697015805,6.0,82.173,82.115,6.086]
[1646697016010,6.0,82.173,82.116,0.25]
[1646697016220,6.0,82.173,82.117,6.086]
[1646697016518,6.0,82.173,82.118,0.25]
[1646697016716,6.0,82.173,82.119,6.086]
[1646697016916,6.0,82.173,82.12,0.25]
[1646697017116,6.0,82.173,82.13,18.2681]
[1646697017315,6.0,82.173,82.131,63.3126466]
[1646697017520,16.36658103,82.175,82.131,0.25]
[1646697018118,16.36658103,82.175,82.14,18.2635]
[1646697018319,6.086,82.186,82.14,18.2635]
[1646697018518,6.085,82.189,82.141,0.25]
[1646697018718,24.2699,82.188,82.131,0.25]
[1646697018918,27.10603526,82.188,82.131,0.25]
[1646697019319,51.76277323,82.186,82.131,0.25]
[1646697019520,6.86673423,82.185,82.14,18.2664]
[1646697019720,6.085,82.184,82.14,18.2664]
[1646697019920,6.86685193,82.183,82.14,18.2664]
[1646697020120,6.085,82.182,82.14,18.2664]
[1646697020321,0.25,82.181,82.14,18.2664]
[1646697021225,6.25,82.187,82.14,18.2664]
[1646697021629,154.4722034,82.186,82.13,18.2687]
[1646697021823,3.27205946,82.183,82.121,6.085]
[1646697022023,124.67205946,82.181,82.1,60.8996]
[1646697022224,6.86703346,82.18,82.1,60.8996]
[1646697022423,124.67205946,82.179,82.1,60.8996]
[1646697022623,121.4,82.177,82.101,45.77933947]
[1646697022924,121.4,82.175,82.101,45.77933947]
[1646697023123,134.10403346,82.174,82.12,18.2709]
[1646697023324,6.61703346,82.173,82.12,18.2709]
[1646697023524,6.086,82.172,82.12,18.2709]
[1646697023722,6.61703346,82.171,82.12,18.2709]
[1646697023927,6.086,82.17,82.12,18.2709]
[1646697024325,6.61703346,82.169,82.12,18.2709]
[1646697024524,121.4,82.167,82.11,18.2734]
[1646697024726,121.4,82.159,82.11,18.2734]
[1646697024925,121.4,82.157,82.11,18.2734]
[1646697025126,121.4,82.153,82.052,46.6709]
[1646697025328,121.4,82.139,82.02,14.43]
[1646697025625,121.4,82.137,82.051,64.61461993]
[1646697025825,121.4,82.129,82.07,18.2824]
[1646697026026,121.4,82.127,82.07,18.2824]
[1646697026230,165.3810736,82.124,82.07,18.2824]
[1646697026428,6.09,82.123,82.07,18.2824]
[1646697026627,121.4,82.119,82.028,46.6709]
[1646697026829,121.4,82.117,82.028,46.6709]
[1646697027026,121.4,82.115,82.06,18.2844]
[1646697027228,121.4,82.113,82.06,18.2844]
[1646697027428,11.492506,82.111,82.06,18.2844]
[1646697027627,6.091,82.11,82.06,18.2844]
[1646697027827,0.25,82.109,82.06,18.2844]
[1646697028129,6.091,82.108,82.06,18.2844]
[1646697028327,0.25,82.107,82.06,18.2844]
[1646697028528,121.4,82.105,82.02,60.9596]
[1646697028728,121.4,82.103,82.02,60.9596]
[1646697028928,121.4,82.099,82.02,60.9596]
[1646697029128,121.4,82.097,82.02,60.9596]
[1646697029330,121.4,82.095,82.021,57.80805285]
[1646697029528,121.4,82.095,82.04,18.2888]
[1646697029730,2.83613526,82.097,82.041,0.25]
[1646697029931,46.9318,82.107,82.041,0.25]
[1646697030332,46.9318,82.107,82.011,0.62997853]
[1646697030629,53.08759649,82.105,82.011,0.62997853]
[1646697030829,127.741,82.104,82.05,18.2845]
[1646697031029,6.62229018,82.103,82.05,18.2845]
[1646697031228,6.341,82.102,82.05,18.2845]
[1646697031628,6.62243714,82.101,82.05,18.2845]
[1646697031832,6.341,82.1,82.05,18.2845]
[1646697032029,0.25,82.1,82.05,18.2845]
[1646697032832,6.091,82.099,82.05,18.2845]
[1646697033032,0.25,82.098,82.05,18.2845]
[1646697033231,6.091,82.097,82.05,18.2845]
[1646697033631,6.091,82.104,82.05,18.2845]
[1646697034335,0.25,82.103,82.05,18.2845]
[1646697034534,6.091,82.102,82.05,18.2845]
[1646697034737,0.25,82.101,82.05,18.2845]
[1646697034934,6.091,82.1,82.05,18.2845]
[1646697035136,0.25,82.099,82.05,18.2845]
[1646697035433,6.091,82.098,82.05,18.2845]
[1646697035635,0.25,82.097,82.05,18.2845]
[1646697035835,6.091,82.096,82.05,18.2845]
[1646697036037,0.25,82.095,82.05,18.2845]
[1646697036638,6.0,82.097,82.06,18.2845]
[1646697036846,3.27205946,82.11,82.061,0.25]
[1646697037039,3.27205946,82.12,82.061,0.25]
[1646697037239,3.27205946,82.125,82.061,9.4]
[1646697037439,6.0,82.124,82.061,9.4]
[1646697037639,48.59986268,82.134,82.061,9.4]
[1646697037839,12.61979898,82.133,82.061,9.4]
[1646697038042,6.61979898,82.132,82.061,9.4]
[1646697038240,6.61979898,82.132,82.071,63.13600975]
[1646697038440,6.61979898,82.132,82.072,0.25]
[1646697038851,3.27205946,82.141,82.072,0.25]
[1646697039039,0.25,82.14,82.072,0.25]
[1646697039442,6.61917181,82.139,82.072,0.25]
[1646697040040,3.27205946,82.14,82.09,18.2782]
[1646697040239,3.27205946,82.148,82.091,0.25]
[1646697040444,3.27205946,82.15,82.091,0.25]
[1646697040839,41.53540765,82.149,82.091,58.75225599]
[1646697041040,6.61844457,82.148,82.091,58.75225599]
[1646697041242,6.61844457,82.148,82.1,18.2726]
[1646697041441,6.61844457,82.148,82.101,0.25]
[1646697041642,3.27205946,82.15,82.101,0.25]
[1646697041840,0.25,82.149,82.101,0.25]
[1646697042042,3.27205946,82.151,82.101,0.25]
[1646697042239,6.61844457,82.148,82.101,0.25]
[1646697042439,48.7276113,82.147,82.101,0.25]
[1646697042641,55.34605587,82.147,82.092,0.25]
[1646697042840,6.61844457,82.146,82.092,0.25]
[1646697043050,6.61844457,82.146,82.11,18.2723]
[1646697043243,3.27205946,82.154,82.111,0.25]
[1646697043444,3.27205946,82.155,82.111,0.25]
[1646697043642,6.087,82.154,82.111,0.25]
[1646697043843,12.087,82.154,82.111,0.25]
[1646697044044,6.61844457,82.153,82.111,0.25]
[1646697044242,6.61844457,82.153,82.101,0.25]
[1646697044646,3.27205946,82.146,82.08,60.9136]
[1646697044843,3.27205946,82.142,82.08,60.9136]
[1646697045244,0.25,82.141,82.08,60.9136]
[1646697045444,6.61844457,82.14,82.08,60.9136]
[1646697045646,0.25,82.139,82.09,18.275]
[1646697045848,6.61844457,82.138,82.09,18.275]
[1646697046053,0.25,82.137,82.091,0.25]
[1646697046649,3.08613526,82.137,82.1,18.2738]
[1646697046849,6.61933744,82.136,82.101,0.25]
[1646697047048,0.25,82.135,82.101,0.25]
[1646697047253,6.61933744,82.134,82.101,0.25]
[1646697047450,0.25,82.133,82.101,0.25]
[1646697048249,3.27205946,82.14,82.101,0.25]
[1646697048549,3.27205946,82.142,82.111,56.81011265]
[1646697048748,3.27205946,82.146,82.112,0.25]
[1646697048948,3.27205946,82.15,82.112,0.25]
[1646697049151,6.087,82.149,82.112,0.25]
[1646697049449,12.61886895,82.148,82.12,18.2715]
[1646697049651,12.61886895,82.148,82.121,0.25]
[1646697049855,6.61886895,82.147,82.121,0.25]
[1646697050061,3.27205946,82.158,82.121,0.25]
[1646697050358,3.27205946,82.164,82.121,0.25]
[1646697050556,6.087,82.186,82.121,0.25]
[1646697050557,3.2540856,82.167,82.121,0.25]
[1646697050757,6.61702847,82.185,82.131,121.4]
[1646697050959,6.61702847,82.185,82.132,56.83149597]
[1646697051157,6.61702847,82.198,82.132,56.83149597]
[1646697051960,8.92113526,82.197,82.14,18.2618]
[1646697052160,12.86702847,82.196,82.141,0.25]
[1646697052362,6.085,82.195,82.141,0.25]
[1646697052560,6.86702847,82.194,82.141,0.25]
[1646697052759,12.70202847,82.193,82.141,0.25]
[1646697052962,6.61702847,82.192,82.15,18.2637]
[1646697053162,6.61702847,82.192,82.151,60.03301597]
[1646697053361,6.61702847,82.194,82.151,60.03301597]
[1646697053561,6.083,82.193,82.151,60.03301597]
[1646697053762,6.61702847,82.192,82.151,60.03301597]
[1646697053961,6.61702847,82.192,82.16,18.2628]
[1646697054162,6.61702847,82.192,82.161,0.25]
[1646697054371,6.0,82.196,82.161,0.25]
[1646697055163,46.05040755,82.201,82.17,18.2576]
[1646697055363,2.83613526,82.214,82.17,18.2576]
[1646697055563,12.69721641,82.213,82.17,18.2576]
[1646697055764,4.89293471,82.167,82.154,6.083]
[1646697055964,4.89293471,82.167,82.155,0.25]
[1646697056166,4.89293471,82.167,82.12,60.8828]
[1646697056565,0.25,82.166,82.12,60.8828]
[1646697056764,4.89293471,82.167,82.12,60.8828]
[1646697056965,4.89293471,82.167,82.121,45.91826938]
[1646697057166,4.89293471,82.167,82.122,6.086]
[1646697057365,4.89293471,82.167,82.13,18.265]
[1646697057587,4.89293471,82.167,82.131,6.086]
[1646697057786,4.89293471,82.167,82.132,0.25]
[1646697057985,4.89293471,82.167,82.134,46.11901881]
[1646697058182,4.89293471,82.167,82.135,6.336]
[1646697059084,4.89293471,82.167,82.14,18.2627]
[1646697059283,4.89293471,82.167,82.141,6.336]
[1646697059684,4.89293471,82.167,82.141,0.25]
[1646697060385,4.89293471,82.167,82.136,0.25]
[1646697060585,4.89293471,82.167,82.137,6.086]
[1646697060786,4.89293471,82.167,82.138,0.25]
[1646697061091,4.89293471,82.167,82.15,18.2626]
[1646697061299,22.566,82.199,82.151,0.25]
[1646697061587,6.25,82.198,82.151,0.25]
[1646697061794,6.25,82.198,82.152,6.083]
[1646697061986,6.25,82.198,82.153,52.30627671]
[1646697062485,6.25,82.198,82.16,18.2595]
[1646697062689,6.25,82.198,82.161,0.25]
[1646697063387,6.25,82.198,82.16,18.2595]
[1646697063588,6.25,82.198,82.152,6.083]
[1646697063789,12.69855596,82.197,82.13,60.878]
[1646697063988,6.86555596,82.196,82.13,60.878]
[1646697064391,128.01555596,82.195,82.101,24.0769]
[1646697064590,121.4,82.189,82.12,18.2686]
[1646697064788,121.4,82.187,82.12,18.2686]
[1646697065087,121.4,82.185,82.12,18.2686]
[1646697065290,12.70155596,82.186,82.12,18.2686]